Cogmind - Beta 11.2 *** ADVENTURER MODE // 2022.12.26 @ 23:10:39 // Winter2022/Polymind Player: PersmaticCoreSerial_K4E2 Result: Self-destructed Performance ------------- Evolutions (1) 500 Regions Visited (3) 600 Robots Destroyed (1) 5 Value Destroyed (16) 16 Prototype IDs (0) 0 Alien Tech Used (0) 0 Bonus (745) 745 TOTAL SCORE: 1766 Bonus ------- Polymind Skill 545 Pacifist 200 Cogmind --------- Core Integrity 400/400 Matter 0/50 Energy 50/50 System Corruption 0% Temperature Cool (1) Movement Rolling (80) Location -9/Materials Parts ------- > --- POWER (1) -------- Light Ion Engine > --- PROPULSION (2) --- Wheel Wheel > --- UTILITY (1) ------ Small Matter Pod > --- WEAPON (0) ------- (None) > --- INVENTORY (1) ---- (None) Peak State ------------ > --- POWER ------------ Ion Engine > --- PROPULSION ------- Aluminum Leg Aluminum Leg > --- UTILITY ---------- Heat Sink > --- WEAPON ----------- Small Laser > --- INVENTORY -------- (None) [Rating: 5] Favorites ----------- Power Ion Engine Engine Ion Engine Propulsion Aluminum Leg Leg Aluminum Leg Wheel Wheel Utility Heat Sink Device Heat Sink Storage Small Matter Pod Weapon Small Laser Energy Gun Small Laser Build | -11 -10 -10 -9 ------- Run | Scr Mat Min Mat Slots Evolved . | . . . . Power . | . . . . Propulsion . | . . . . Utility . | . . . . Weapon . | . . . . Parts Attached . | . . . . Power . | . . . . Engine . | . . . . Core . | . . . . Reactor . | . . . . Propulsion . | . . . . Treads . | . . . . Leg . | . . . . Wheel . | . . . . Hover . | . . . . Flight . | . . . . Utility . | . . . . Device . | . . . . Storage . | . . . . Processor . | . . . . Hackware . | . . . . Protection . | . . . . Artifact . | . . . . Weapon . | . . . . Energy Gun . | . . . . Energy Cannon . | . . . . Ballistic Gun . | . . . . Ballistic Cannon . | . . . . Launcher . | . . . . Special Weapon . | . . . . Impact Weapon . | . . . . Slashing Weapon . | . . . . Piercing Weapon . | . . . . Special Melee Weapon . | . . . . Unidentified Prototypes . | . . . . Parts Lost . | . . . . Power . | . . . . Propulsion . | . . . . Utility . | . . . . Weapon . | . . . . Highest Loss Streak . | . . . . To Critical Strikes . | . . . . Average Slot Usage (%) 87 | . . 100 100 Engine 18 | . . 20 21 Leg 28 | . . 40 29 Wheel 8 | . . . 13 Device 14 | . . 20 14 Storage 4 | . . . 6 Energy Gun 14 | . . 20 14 Naked Turns 33 | . 31 . 2 Heaviest Build 7 | . 7 7 7 Greatest Support 20 | 3 20 20 20 Greatest Overweight (x) . | . . . . Average Overweight (x) . | . . . . Largest Inventory Capacity 1 | . 1 1 1 Average Capacity . | . . 1 . Most Carried . | . . . . Average Carried . | . . . . Final Capacity 1 | . 1 1 1 Final Carried . | . . . . Class Distribution -------------------- 69% | Grunt 16% | Worker 13% | Cogmind Dominant Class ---------------- Cogmind | -10/Materials Grunt | -10/Mines Grunt | -9/Materials Resources | -11 -10 -10 -9 ----------- Run | Scr Mat Min Mat Matter Collected . | . . . . Remotely . | . . . . Salvage Created 30 | . . . 30 Parts 3 | . . . 3 Haulers Intercepted . | . . . . Recyclers Shooed . | . . . . Parts Field Recycled . | . . . . Retrieved Matter . | . . . . Parts Self-Destructed . | . . . . Prevented . | . . . . Kills | -11 -10 -10 -9 ------- Run | Scr Mat Min Mat Combat Hostiles Destroyed . | . . . . Classes Destroyed 1 | . . . 1 Watcher 1 | . . . 1 Best Kill Streak 1 | . . . 1 Combat Bots Only . | . . . . Max Kills in Single Turn 1 | . . . 1 Gunslinging . | . . . . Exploded . | . . . . Melee . | . . . . Uniques/NPCs Destroyed . | . . . . Combat | -11 -10 -10 -9 -------- Run | Scr Mat Min Mat Damage Taken 45 | . 37 . 8 Core 29 | . 29 . . Absorbed by Shields . | . . . . Core Remaining (%) 94 | 100 . 88 . Volleys Fired 5 | . . . 5 Largest 1 | . . . 1 Hottest 40 | . . . 40 Shots Fired 5 | . . . 5 Gun 5 | . . . 5 Cannon . | . . . . Launcher . | . . . . Special . | . . . . Kinetic . | . . . . Thermal 5 | . . . 5 Explosive . | . . . . Electromagnetic . | . . . . Robot Hit Streak 4 | . . . 4 Robot Miss Streak . | . . . . Penetration Max . | . . . . Secondary Targets . | . . . . Shots Hit Robots 4 | . . . 4 Core Hits 2 | . . . 2 Critical Kills . | . . . . Critical Parts Destroyed . | . . . . Critical Strikes . | . . . . Melee Attacks . | . . . . Impact . | . . . . Slashing . | . . . . Piercing . | . . . . Sneak Attacks . | . . . . Combat Hostiles . | . . . . Follow-up Attacks . | . . . . Damage Inflicted 44 | . . . 44 Guns 44 | . . . 44 Cannons . | . . . . Explosions . | . . . . Melee . | . . . . Ramming . | . . . . Kinetic . | . . . . Thermal 44 | . . . 44 Explosive . | . . . . Electromagnetic . | . . . . Impact . | . . . . Slashing . | . . . . Piercing . | . . . . Highest Corruption . | . . . . Average Corruption . | . . . . Corruption Purged . | . . . . Corruption Blocked . | . . . . Overload Shots . | . . . . Overflow Damage . | . . . . Projectiles . | . . . . Explosions . | . . . . Melee . | . . . . Knockbacks . | . . . . Impact . | . . . . Kinetic . | . . . . Secondary . | . . . . Self-Inflicted Damage . | . . . . Shots . | . . . . Rammed . | . . . . Targets Rammed . | . . . . Kicked . | . . . . Crushed . | . . . . Highest Temperature 1 | . . . 1 Average Temperature 1 | . . . 1 Received Heat Transfer 30 | . 24 . 6 Siege Activations . | . . . . Robots Corrupted . | . . . . Combat Hostiles . | . . . . Parts Fried . | . . . . Impact Corruptions . | . . . . Robots Melted . | . . . . Combat Hostiles . | . . . . Parts Melted . | . . . . Heat Transferred 100 | . . . 100 Parts Sabotaged . | . . . . Parts Stolen . | . . . . Parts Stripped . | . . . . Power Chain Reactions . | . . . . Missiles Intercepted . | . . . . Alert | -11 -10 -10 -9 ------- Run | Scr Mat Min Mat Peak Influence 202 | . 15 4 202 Initial 4 | . . 4 1 Average 21 | . . 4 33 Maximum Alert Level 1 | . . . 1 Low Security (%) 93 | 100 100 100 89 Level 1 6 | . . . 10 Level 2 . | . . . . Level 3 . | . . . . Level 4 . | . . . . Level 5 . | . . . . High Security . | . . . . Max Security . | . . . . Squads Dispatched 1 | . 1 . . Investigation 1 | . 1 . . Extermination . | . . . . Reinforcement . | . . . . Assault . | . . . . Garrison . | . . . . Intercept . | . . . . Searches Triggered . | . . . . Construction Impeded . | . . . . Haulers Reinforced . | . . . . Active Scanning Responses . | . . . . Cargo Convoy Interrupts . | . . . . Stealth | -11 -10 -10 -9 --------- Run | Scr Mat Min Mat Distress Signals 1 | . . . 1 Communications Jammed . | . . . . Distress Signals . | . . . . Times Spotted 13 | . 8 . 5 Peak Tracking Total 6 | . 6 . 2 Tactical Retreats . | . . . . Traps | -11 -10 -10 -9 ------- Run | Scr Mat Min Mat Traps Triggered 1 | . 1 . . Indirectly . | . . . . Trap Hack Attempts . | . . . . Triggered . | . . . . Disarmed . | . . . . Reprogrammed . | . . . . Reused . | . . . . Traps Extracted . | . . . . Installed . | . . . . Triggered . | . . . . Machines | -11 -10 -10 -9 ---------- Run | Scr Mat Min Mat Machines Disabled . | . . . . Max in Single Turn . | . . . . Machines Sabotaged . | . . . . Garrisons Compromised . | . . . . Overloaded Fab Kills . | . . . . Hacking | -11 -10 -10 -9 --------- Run | Scr Mat Min Mat Machines Accessed 1 | . 1 . . Terminals 1 | . 1 . . Fabricators . | . . . . Repair Stations . | . . . . Recycling Units . | . . . . Scanalyzers . | . . . . Garrison Access . | . . . . Total Hacks 3 | . 3 . . Successful 1 | . 1 . . Failed 2 | . 2 . . Catastrophic . | . . . . Database Lockouts . | . . . . Manual 3 | . 3 . . Terminals 3 | . 3 . . Fabricators . | . . . . Repair Stations . | . . . . Recycling Units . | . . . . Scanalyzers . | . . . . Garrison Access . | . . . . Terminal Hacks . | . . . . Fabricator Hacks . | . . . . Repair Station Hacks . | . . . . Recycling Unit Hacks . | . . . . Scanalyzer . | . . . . Garrison Access Hacks . | . . . . Unauthorized Hacks 1 | . 1 . . Terminals 1 | . 1 . . Botnet 1 | . 1 . . Fabricators . | . . . . Repair Stations . | . . . . Recycling Units . | . . . . Scanalyzers . | . . . . Garrison Access . | . . . . Data Cores Recovered . | . . . . Used . | . . . . Hacking Detections 1 | . 1 . . Full Trace Events . | . . . . Feedback Events . | . . . . Feedback Blocked . | . . . . Robot Schematics Acquired . | . . . . Robots Built . | . . . . Authchips . | . . . . Time . | . . . . Total Robot Build Rating . | . . . . Part Schematics Acquired . | . . . . Parts Built . | . . . . Authchips . | . . . . Time . | . . . . Total Part Build Rating . | . . . . Parts Repaired . | . . . . Time . | . . . . Parts Recycled . | . . . . Recycled Matter . | . . . . Retrieved Matter . | . . . . Retrieved Components . | . . . . Parts Scanalyzed . | . . . . Part Schematics Acquired . | . . . . Parts Damaged . | . . . . Bothacking | -11 -10 -10 -9 ------------ Run | Scr Mat Min Mat Used RIF Installer . | . . . . Robots Hacked 1 | . 1 . . Non-combat . | . . . . Combat 1 | . 1 . . Robot Hacks Applied 1 | . 1 . . find_shortcuts 1 | . 1 . . Relay Couplers Released . | . . . . Fabnet Peak Effective % . | . . . . Robots Rewired . | . . . . Allies Hacked . | . . . . Hacks Repelled . | . . . . Allies | -11 -10 -10 -9 -------- Run | Scr Mat Min Mat Total Allies . | . . . . Largest Group . | . . . . Highest-Rated Group . | . . . . Highest-Rated Ally . | . . . . Total Orders . | . . . . Ally Attacks . | . . . . Total Damage . | . . . . Kills . | . . . . Allies Corrupted . | . . . . Allies Melted . | . . . . Intel | -11 -10 -10 -9 ------- Run | Scr Mat Min Mat Robot Analysis Total 2 | . 1 . 1 Derelict Logs Recovered . | . . . . Drone Launches . | . . . . Drone Recoveries . | . . . . Exploration | -11 -10 -10 -9 ------------- Run | Scr Mat Min Mat Turns Passed 254 | 10 34 59 151 Spaces Moved 268 | 19 64 49 136 Core 83 | 19 60 . 4 Treads . | . . . . Legs 134 | . 4 49 81 Wheels 51 | . . . 51 Hover . | . . . . Flight . | . . . . Fastest Speed 50 | 50 50 120 50 Average Speed 90 | 50 54 120 102 Slowest Speed 120 | 50 120 120 120 Overloaded Moves . | . . . . Propulsion Burnouts . | . . . . Robots Hopped . | . . . . Cave-ins Triggered . | . . . . Exploration Rate (%) 10 | 4 13 13 10 Regions Visited 3 Branch Regions 1 Pre-discovered Areas 1 | . . 1 . Known Exits Taken . | . . . . Unknown Exits Taken 3 | 1 1 1 . Scrap Searched 1 | . . 1 . Spaces Dug . | . . . . Terrain Destroyed . | . . . . Melee . | . . . . Projectile . | . . . . AOE . | . . . . Terrain Rammed . | . . . . Walls Destroyed . | . . . . Machines Disabled . | . . . . Actions | -11 -10 -10 -9 --------- Run | Scr Mat Min Mat Total 271 | 18 63 49 141 Wait 1 | . . 1 . Move 265 | 18 63 48 136 Hop . | . . . . Pick Up . | . . . . Fast Attach . | . . . . Attach . | . . . . Detach . | . . . . Swap . | . . . . Drop . | . . . . Fire 5 | . . . 5 Melee . | . . . . Ram . | . . . . Kick . | . . . . Crush . | . . . . Escape Stasis . | . . . . Rewire . | . . . . Trap . | . . . . Miscellaneous . | . . . . Route ------- -11/Scrapyard -10/Materials -10/Mines -9/Materials History --------- Turn | Location | Event 3 | -11/Scrapyard | Discovered new exit (range 14) 11 | -11/Scrapyard | Entered Materials 11 | -10/Materials | Discovered new exit (range 14) 45 | -10/Materials | Entered Mines 46 | -10/Mines | Learned location of Storage (-7) 98 | -10/Mines | Discovered new exit (range 6) 104 | -10/Mines | Entered Materials 255 | -9/Materials | Self-destructed Last Messages --------------- 00048_ OQ-1FT(g): "We scattered so the Unaware couldn't effectively use their advantage in numbers, and I suggest you do the same." 00048_ OQ-1FT(g) slips back into the shadows. 00066_ Searching scrap... 00066_ Found Lrg. Storage Unit. 00066_ Found Lrg. Matter Pod. 00066_ Found Core Shielding. 00066_ Found Targeting Computer. 00066_ Found 26 Matter. 00098_ EXIT=FOUND LOCATION=UNKNOWN GOAL=ESCAPE 00125_ K-01 Serf collects debris. 00167_ W-16 Scout distress signal alerts nearby ally. 00170_ W-16 Scout destroyed. 00187_ K-01 Serf collects debris. 00212_ Released control of G-34 Mercenary. 00214_ Took control of K-01 Serf. 00214_ Extracted analysis data for K-01 Serf. 00215_ Collected debris. Map ----- +----------------------------------------------------+ | | | | | | | | | | | | | | | | | | | | | | | | | | | ?????????????????????????????????????????????????? | | ?????????????????????????????????????????????????? | | ?????????????????????????????????????????????????? | | ??????????????????##########?????????????????????? | | ??????????????????# #?????????????????????? | | ??????????????????# #?????????????????????? | | ??????????????????# #?????????????????????? | | ??????????????????# """ #?????????????????????? | | ??????????????????# """ #?????????????????????? | | ??????????????##### """ #?????????????????????? | | ??????????????# # """ #?????????????????????? | | ????########??# # """ #?????????????????????? | | ????+ [[ # # gk #?????????????????????? | | ????# [= + ###+###########????????????????? | | ????# # # ?????????????????? | | ????# ??# # """ ?????????????????? | | ????######????# # """??????????????????? | | ?????????????######### # """??????????????????? | | ?????????????# # #? ???????????????????? | | ?????????????# """"" # #? ???????????????????? | | ?????????????# """"" + ###+##################### | | ?????????????# """"" # | | ?????????????# # | | ?????????????######### | | ?????????????????????#######+##################### | | ???????????????????????# ] #??????????????????# | | ???????????????????????# #??????????????????# | | ???????????????????????# """ #????????????####### | | ???????????????????????# """ #????? | | ???????????????????????# """ +????? =%! | | ???????????????????????# # ???? ! | | ???????????????????????######## ????####### | | ????????????????????????????????##?????????#! ! | | ???????????????????????????????????????????#! ! | | ???????????????????????????????????????????##!!!!# | | ????????????????????????????????????????????#####? | | ?????????????????????????????????????????????????? | +----------------------------------------------------+ Best States ------------- Heat Dissipation 28 Energy Generation 15 Energy Capacity 200 Matter Capacity 50 Sight Range 16 Terrain Scan Density 10 Resistance: KI 20 Resistance: TH 20 Resistance: EX 20 Resistance: EM 20 Resistance: I 20 Resistance: S 20 Resistance: P 20 Evasion (%) 55 Offensive Hacking 10 Item Schematics ----------------- None Robot Schematics ------------------ None Fabricated ------------ Nothing Alien Tech Used ----------------- None Achievements -------------- None Challenges ------------ None Polymind | -11 -10 -10 -9 ---------- Run | Scr Mat Min Mat Robots Controlled 2 | . 1 . 1 Combat Hostiles 1 | . 1 . . Allies . | . . . . Classes Controlled 2 | . 1 . 1 Average Host Suspicion 46 | . 99 10 60 Unsuspicious Activity 47 | . . . 47 Returns to Shadow . | . . . . Fuzzy Dispatches . | . . . . Protomatter Created . | . . . . Used 20 | . 15 . 5 Decayed . | . . . . Highest Spend 15 | . 15 . 5 Game ------ Seed NovaMolecularActivator Manual? 0 Play Time 00:05:51 Cumulative 41.1 hours Start 2022.12.26 @ 22:59:21 End 2022.12.26 @ 23:10:39 Sessions 1 Manual Loads 0 Difficulty Adventurer Special Mode Winter2022/Polymind Game No. 18 Rogue 0 Adventurer 18 Explorer 0 Win Type - Total 0 Types 0/0/0/0/0/0/0/0/0 Lore% 22 Gallery% 35 Achievement% 29 Wizard Run 0 Options --------- ASCII 0 Keyboard 0 Movement Mouse Keybinds 0 Fullscreen 1 Font 18/SmallcapsGlow Map View 76x50 Tactical HUD 1 Map Filters NONE Filters NONE Steam 1 RUN: 0cff1bac-2bd5-49f4-a692-fbdb6e78b36e